[Event "*** SCC Grand Prix: Titled Tuesday Blitz"]
[Site "Chess.com"]
[Date "2020.08.11"]
[Round "10"]
[White "stolencandy13"]
[Black "Gorin_Leonid"]
[Result "0-1"]
[WhiteElo "2419"]
[BlackElo "2610"]
[TimeControl "180+1"]
[EndTime "11:57:00 PDT"]
[Termination "Gorin_Leonid won by resignation"]

1. e4 {[%clk 0:03:00.9]} 1... e5 {[%clk 0:02:59.4]} 2. Nf3 {[%clk 0:03:00.3]}
2... Nc6 {[%clk 0:02:59.4]} 3. Nc3 {[%clk 0:03:00.5]} 3... Nf6 {[%clk
0:02:58.9]} 4. d4 {[%clk 0:03:00.7]} 4... Bb4 {[%clk 0:02:58.5]} 5. d5 {[%clk
0:02:53.8]} 5... Bxc3+ {[%clk 0:02:57.2]} 6. bxc3 {[%clk 0:02:53.2]} 6... Nb8
{[%clk 0:02:57.7]} 7. Bd3 {[%clk 0:02:47.2]} 7... d6 {[%clk 0:02:56.5]} 8. h3
{[%clk 0:02:47.5]} 8... Nbd7 {[%clk 0:02:55.3]} 9. O-O {[%clk 0:02:45.3]} 9...
Nc5 {[%clk 0:02:54.8]} 10. Be3 {[%clk 0:02:37.8]} 10... Nfxe4 {[%clk 0:02:37.7]}
11. c4 {[%clk 0:02:09.4]} 11... O-O {[%clk 0:02:30.4]} 12. Nd2 {[%clk
0:01:53.1]} 12... Nxd2 {[%clk 0:02:21.1]} 13. Qxd2 {[%clk 0:01:48.1]} 13... Nxd3
{[%clk 0:02:19.8]} 14. cxd3 {[%clk 0:01:48.1]} 14... b6 {[%clk 0:02:15.8]} 15.
a4 {[%clk 0:01:45]} 15... a5 {[%clk 0:02:15.1]} 16. f4 {[%clk 0:01:41.6]} 16...
exf4 {[%clk 0:02:14.6]} 17. Rxf4 {[%clk 0:01:41.3]} 17... Bd7 {[%clk 0:02:04.6]}
18. Bd4 {[%clk 0:01:38.4]} 18... f5 {[%clk 0:01:59.5]} 19. Qf2 {[%clk
0:01:34.1]} 19... Qg5 {[%clk 0:01:51.3]} 20. Rf3 {[%clk 0:01:25.8]} 20... Rf7
{[%clk 0:01:44]} 21. Rg3 {[%clk 0:01:14.1]} 21... Qh6 {[%clk 0:01:39.1]} 22. Rf3
{[%clk 0:00:57.9]} 22... Raf8 {[%clk 0:01:37.9]} 23. Rf4 {[%clk 0:00:57.2]}
23... g5 {[%clk 0:01:29.9]} 24. Rf3 {[%clk 0:00:56.4]} 24... Qg6 {[%clk
0:01:24.7]} 25. Bc3 {[%clk 0:00:51.1]} 25... h6 {[%clk 0:01:24.7]} 26. Qd4
{[%clk 0:00:49]} 26... Kh7 {[%clk 0:01:25]} 27. Re1 {[%clk 0:00:38.6]} 27... f4
{[%clk 0:01:23.8]} 28. Ref1 {[%clk 0:00:25.9]} 28... g4 {[%clk 0:01:14.7]} 29.
hxg4 {[%clk 0:00:22.2]} 29... Qxg4 {[%clk 0:01:13.1]} 30. Rh3 {[%clk 0:00:12.7]}
30... Rg8 {[%clk 0:01:05.8]} 31. Rh2 {[%clk 0:00:07.9]} 31... f3 {[%clk
0:00:57.2]} 32. Qxg4 {[%clk 0:00:07.4]} 32... Rxg4 {[%clk 0:00:56.4]} 33. Kh1
{[%clk 0:00:07.4]} 33... fxg2+ {[%clk 0:00:54.3]} 34. Rxg2 {[%clk 0:00:07.3]}
34... Rxf1+ {[%clk 0:00:53.8]} 35. Kh2 {[%clk 0:00:07.7]} 0-1

[Event "*** SCC Grand Prix: Titled Tuesday Blitz"]
[Site "Chess.com"]
[Date "2020.08.11"]
[Round "10"]
[White "anskam"]
[Black "Srchesschilango"]
[Result "0-1"]
[WhiteElo "1568"]
[BlackElo "2237"]
[TimeControl "180+1"]
[EndTime "11:57:01 PDT"]
[Termination "Srchesschilango won by checkmate"]

1. e4 {[%clk 0:03:00.9]} 1... c6 {[%clk 0:02:59.5]} 2. d4 {[%clk 0:02:58.8]}
2... d5 {[%clk 0:02:59.2]} 3. Nc3 {[%clk 0:02:57.7]} 3... dxe4 {[%clk
0:02:58.3]} 4. Nxe4 {[%clk 0:02:56.9]} 4... Nf6 {[%clk 0:02:57.8]} 5. Nxf6+
{[%clk 0:02:52.8]} 5... exf6 {[%clk 0:02:57.7]} 6. Nf3 {[%clk 0:02:51.7]} 6...
Bd6 {[%clk 0:02:57.3]} 7. Bd3 {[%clk 0:02:50.7]} 7... O-O {[%clk 0:02:56.8]} 8.
O-O {[%clk 0:02:49.5]} 8... Bg4 {[%clk 0:02:54.8]} 9. Re1 {[%clk 0:02:45.8]}
9... Qc7 {[%clk 0:02:53.3]} 10. h3 {[%clk 0:02:42.9]} 10... Bh5 {[%clk
0:02:52.9]} 11. c3 {[%clk 0:02:41]} 11... Nd7 {[%clk 0:02:52.5]} 12. Be3 {[%clk
0:02:38.2]} 12... Rfe8 {[%clk 0:02:51.8]} 13. g4 {[%clk 0:02:36.4]} 13... Bg6
{[%clk 0:02:50.7]} 14. Bxg6 {[%clk 0:02:32.3]} 14... hxg6 {[%clk 0:02:50.2]} 15.
Qb3 {[%clk 0:02:26.6]} 15... Nb6 {[%clk 0:02:42]} 16. c4 {[%clk 0:02:22.2]}
16... c5 {[%clk 0:02:39.6]} 17. d5 {[%clk 0:02:15]} 17... Nd7 {[%clk 0:02:35.3]}
18. Kg2 {[%clk 0:02:12.8]} 18... f5 {[%clk 0:02:30.8]} 19. gxf5 {[%clk 0:02:05]}
19... gxf5 {[%clk 0:02:31.7]} 20. Qd3 {[%clk 0:01:50.6]} 20... Re4 {[%clk
0:02:25]} 21. Nd2 {[%clk 0:01:42.8]} 21... Ne5 {[%clk 0:02:24.5]} 22. Qc2 {[%clk
0:01:37.7]} 22... Rh4 {[%clk 0:02:17.2]} 23. Qxf5 {[%clk 0:01:31.4]} 23... g6
{[%clk 0:01:56.1]} 24. Qg5 {[%clk 0:01:24.3]} 24... Rh5 {[%clk 0:01:52.6]} 25.
Qg4 {[%clk 0:01:16.9]} 25... Nxg4 {[%clk 0:01:51.6]} 26. hxg4 {[%clk 0:01:15.2]}
26... Rh2+ {[%clk 0:01:49.5]} 27. Kf3 {[%clk 0:01:12.5]} 27... Re8 {[%clk
0:01:45.4]} 28. Ne4 {[%clk 0:01:09.7]} 28... Be5 {[%clk 0:01:35]} 29. Rab1
{[%clk 0:01:03.9]} 29... f5 {[%clk 0:01:34]} 30. gxf5 {[%clk 0:01:01.7]} 30...
gxf5 {[%clk 0:01:33.8]} 31. Ng5 {[%clk 0:00:59]} 31... f4 {[%clk 0:01:29.4]} 32.
Bd2 {[%clk 0:00:55.1]} 32... Qg7 {[%clk 0:01:27.8]} 33. Rg1 {[%clk 0:00:52.9]}
33... Kh8 {[%clk 0:01:23.4]} 34. Rg4 {[%clk 0:00:48.2]} 34... Qg6 {[%clk
0:01:19.8]} 35. Rbg1 {[%clk 0:00:46.3]} 35... Qd3+ {[%clk 0:01:19.2]} 36. Be3
{[%clk 0:00:44.8]} 36... Rxf2+ {[%clk 0:01:05.5]} 37. Kxf2 {[%clk 0:00:40.3]}
37... fxe3+ {[%clk 0:00:59.6]} 38. Kg2 {[%clk 0:00:37.2]} 38... Qe2+ {[%clk
0:00:56.4]} 39. Kh1 {[%clk 0:00:34.1]} 39... Qh2# {[%clk 0:00:53.3]} 0-1

[Event "*** SCC Grand Prix: Titled Tuesday Blitz"]
[Site "Chess.com"]
[Date "2020.08.11"]
[Round "10"]
[White "Maksimus1998"]
[Black "crossingthestreet"]
[Result "1-0"]
[WhiteElo "2527"]
[BlackElo "2404"]
[TimeControl "180+1"]
[EndTime "11:57:05 PDT"]
[Termination "Maksimus1998 won by checkmate"]

1. e4 {[%clk 0:03:00.9]} 1... e6 {[%clk 0:02:55.8]} 2. d4 {[%clk 0:03:00]} 2...
d5 {[%clk 0:02:55.8]} 3. Nc3 {[%clk 0:03:00.1]} 3... Nf6 {[%clk 0:02:55.1]} 4.
Bg5 {[%clk 0:02:57.7]} 4... Bb4 {[%clk 0:02:54.5]} 5. exd5 {[%clk 0:02:51.7]}
5... Qxd5 {[%clk 0:02:40.5]} 6. Bxf6 {[%clk 0:02:51.1]} 6... gxf6 {[%clk
0:02:31]} 7. Qd2 {[%clk 0:02:45.6]} 7... Qa5 {[%clk 0:02:19.7]} 8. Nge2 {[%clk
0:02:44.6]} 8... Nc6 {[%clk 0:02:15.2]} 9. g3 {[%clk 0:02:37.3]} 9... Bd7 {[%clk
0:02:05.2]} 10. Bg2 {[%clk 0:02:36.7]} 10... O-O-O {[%clk 0:02:01.7]} 11. O-O
{[%clk 0:02:36.4]} 11... h5 {[%clk 0:02:00.6]} 12. a3 {[%clk 0:02:35.9]} 12...
Bxc3 {[%clk 0:01:45.6]} 13. Nxc3 {[%clk 0:02:36]} 13... h4 {[%clk 0:01:45.7]}
14. d5 {[%clk 0:02:23.8]} 14... Ne5 {[%clk 0:01:30.7]} 15. b4 {[%clk 0:02:21.7]}
15... Qb6 {[%clk 0:01:27.1]} 16. Qf4 {[%clk 0:02:19.6]} 16... hxg3 {[%clk
0:00:45.3]} 17. hxg3 {[%clk 0:02:19.3]} 17... Rdg8 {[%clk 0:00:35.5]} 18. Rad1
{[%clk 0:02:14]} 18... Ng4 {[%clk 0:00:31.9]} 19. dxe6 {[%clk 0:01:42.3]} 19...
fxe6 {[%clk 0:00:29.3]} 20. Qd4 {[%clk 0:01:40.8]} 20... Bc6 {[%clk 0:00:22.7]}
21. Qxb6 {[%clk 0:01:34.9]} 21... axb6 {[%clk 0:00:23.2]} 22. b5 {[%clk
0:01:20.1]} 22... Bxg2 {[%clk 0:00:19.8]} 23. Kxg2 {[%clk 0:01:21]} 23... Rh2+
{[%clk 0:00:18.9]} 24. Kf3 {[%clk 0:01:21.2]} 24... Ne5+ {[%clk 0:00:18.8]} 25.
Ke3 {[%clk 0:01:14.4]} 25... Ng4+ {[%clk 0:00:18.5]} 26. Ke2 {[%clk 0:01:13.8]}
26... Rg5 {[%clk 0:00:17.7]} 27. Ne4 {[%clk 0:01:06]} 27... Re5 {[%clk
0:00:13.1]} 28. Kf3 {[%clk 0:01:06.2]} 28... f5 {[%clk 0:00:13.4]} 29. Ng5
{[%clk 0:00:59.5]} 29... Rxb5 {[%clk 0:00:13]} 30. Nxe6 {[%clk 0:00:53.4]} 30...
Kb8 {[%clk 0:00:13.1]} 31. Rd8+ {[%clk 0:00:51.1]} 31... Ka7 {[%clk 0:00:13.4]}
32. Ra8+ {[%clk 0:00:51.4]} 32... Kxa8 {[%clk 0:00:13.2]} 33. Nxc7+ {[%clk
0:00:52.3]} 33... Kb8 {[%clk 0:00:13.9]} 34. Nxb5 {[%clk 0:00:53.2]} 34... Ne5+
{[%clk 0:00:12.1]} 35. Ke2 {[%clk 0:00:52.3]} 35... Nc4 {[%clk 0:00:12.2]} 36.
Rd1 {[%clk 0:00:50.6]} 36... Rh6 {[%clk 0:00:10.5]} 37. Rd8# {[%clk 0:00:50.2]}
1-0

[Event "*** SCC Grand Prix: Titled Tuesday Blitz"]
[Site "Chess.com"]
[Date "2020.08.11"]
[Round "10"]
[White "Na_binci"]
[Black "zala02"]
[Result "0-1"]
[WhiteElo "2003"]
[BlackElo "2190"]
[TimeControl "180+1"]
[EndTime "11:57:05 PDT"]
[Termination "zala02 won by resignation"]

1. d4 {[%clk 0:03:00.9]} 1... Nf6 {[%clk 0:02:59.5]} 2. c4 {[%clk 0:02:59.8]}
2... e6 {[%clk 0:02:59.5]} 3. Nf3 {[%clk 0:02:59.4]} 3... d5 {[%clk 0:02:59.2]}
4. Bg5 {[%clk 0:02:58.2]} 4... Be7 {[%clk 0:02:44.9]} 5. g3 {[%clk 0:02:56.7]}
5... O-O {[%clk 0:02:35.5]} 6. Bg2 {[%clk 0:02:56.5]} 6... dxc4 {[%clk 0:02:32]}
7. O-O {[%clk 0:02:52.5]} 7... Bd7 {[%clk 0:02:30.3]} 8. Ne5 {[%clk 0:02:50.5]}
8... Bc6 {[%clk 0:02:22.3]} 9. Nxc6 {[%clk 0:02:41.1]} 9... Nxc6 {[%clk
0:02:23.2]} 10. Bxc6 {[%clk 0:02:40.2]} 10... bxc6 {[%clk 0:02:24.1]} 11. e3
{[%clk 0:02:36.3]} 11... h6 {[%clk 0:02:13.6]} 12. Bxf6 {[%clk 0:02:35.3]} 12...
Bxf6 {[%clk 0:02:14.5]} 13. Nd2 {[%clk 0:02:35.5]} 13... c5 {[%clk 0:02:14.6]}
14. Nf3 {[%clk 0:01:44.7]} 14... cxd4 {[%clk 0:02:10.4]} 15. exd4 {[%clk
0:01:45.6]} 15... c5 {[%clk 0:02:07.5]} 16. Rc1 {[%clk 0:01:38.6]} 16... cxd4
{[%clk 0:01:51.5]} 17. Rxc4 {[%clk 0:01:36.4]} 17... Qd5 {[%clk 0:01:51.7]} 18.
Qd3 {[%clk 0:01:16.1]} 18... e5 {[%clk 0:01:44.5]} 19. Nd2 {[%clk 0:01:15.6]}
19... Be7 {[%clk 0:01:26]} 20. Re1 {[%clk 0:01:00]} 20... f5 {[%clk 0:01:17.7]}
21. Rec1 {[%clk 0:00:22.5]} 21... Rad8 {[%clk 0:01:02.4]} 22. Nb3 {[%clk
0:00:20.7]} 22... Rd7 {[%clk 0:00:47.7]} 23. f4 {[%clk 0:00:20]} 23... Bd6
{[%clk 0:00:30.3]} 24. fxe5 {[%clk 0:00:18.5]} 24... Bxe5 {[%clk 0:00:31.2]} 25.
Rc5 {[%clk 0:00:18.5]} 25... Qd6 {[%clk 0:00:27.3]} 26. Qc4+ {[%clk 0:00:17.5]}
26... Kh8 {[%clk 0:00:26.1]} 27. Rd5 {[%clk 0:00:16.7]} 27... Qxd5 {[%clk
0:00:24.8]} 0-1

[Event "*** SCC Grand Prix: Titled Tuesday Blitz"]
[Site "Chess.com"]
[Date "2020.08.11"]
[Round "10"]
[White "Orest_Vovk"]
[Black "keepitcool9499"]
[Result "0-1"]
[WhiteElo "2462"]
[BlackElo "2654"]
[TimeControl "180+1"]
[EndTime "11:57:07 PDT"]
[Termination "keepitcool9499 won on time"]

1. h4 {[%clk 0:03:00.9]} 1... e6 {[%clk 0:03:00.9]} 2. h5 {[%clk 0:03:01.1]}
2... d5 {[%clk 0:02:59.1]} 3. e4 {[%clk 0:03:00.6]} 3... dxe4 {[%clk 0:02:58.8]}
4. Nc3 {[%clk 0:03:00.5]} 4... f5 {[%clk 0:02:58.3]} 5. d3 {[%clk 0:02:56.2]}
5... Nf6 {[%clk 0:02:46.9]} 6. Bg5 {[%clk 0:02:50.9]} 6... h6 {[%clk 0:02:38.2]}
7. Bxf6 {[%clk 0:02:49.1]} 7... Qxf6 {[%clk 0:02:39.1]} 8. dxe4 {[%clk
0:02:49.2]} 8... Bb4 {[%clk 0:02:35.3]} 9. Qd3 {[%clk 0:02:37.7]} 9... fxe4
{[%clk 0:02:29.7]} 10. Qb5+ {[%clk 0:02:17.3]} 10... Nc6 {[%clk 0:02:25.4]} 11.
Ne2 {[%clk 0:02:16.3]} 11... O-O {[%clk 0:02:22.6]} 12. O-O-O {[%clk 0:02:12]}
12... Qxf2 {[%clk 0:02:19.5]} 13. a3 {[%clk 0:02:01.6]} 13... Bxc3 {[%clk
0:02:16.8]} 14. Nxc3 {[%clk 0:02:00.5]} 14... Nd4 {[%clk 0:02:15.2]} 15. Qa4
{[%clk 0:01:51.8]} 15... c5 {[%clk 0:02:06.8]} 16. Nxe4 {[%clk 0:01:43.3]} 16...
Qf4+ {[%clk 0:02:03.2]} 17. Kb1 {[%clk 0:01:25.3]} 17... Qxe4 {[%clk 0:01:57.6]}
18. Bd3 {[%clk 0:01:25.2]} 18... Qxg2 {[%clk 0:01:41.5]} 19. Rhg1 {[%clk
0:01:15.7]} 19... Qc6 {[%clk 0:01:24.7]} 20. Qa5 {[%clk 0:01:15.4]} 20... b6
{[%clk 0:01:14]} 21. Qd2 {[%clk 0:01:14.5]} 21... Rf6 {[%clk 0:01:09.6]} 22.
Rdf1 {[%clk 0:00:34.3]} 22... Rxf1+ {[%clk 0:01:04]} 23. Bxf1 {[%clk 0:00:31.4]}
23... e5 {[%clk 0:01:02.6]} 24. Rg6 {[%clk 0:00:12.8]} 24... Qh1 {[%clk
0:00:52.5]} 25. Qe1 {[%clk 0:00:05]} 25... Be6 {[%clk 0:00:44.7]} 26. c3 {[%clk
0:00:02.6]} 26... Bf5+ {[%clk 0:00:39.6]} 27. Ka1 {[%clk 0:00:01.8]} 27... Nc2+
{[%clk 0:00:37.2]} 0-1

[Event "*** SCC Grand Prix: Titled Tuesday Blitz"]
[Site "Chess.com"]
[Date "2020.08.11"]
[Round "10"]
[White "sertalzin"]
[Black "vrekhson"]
[Result "0-1"]
[WhiteElo "1855"]
[BlackElo "2155"]
[TimeControl "180+1"]
[EndTime "11:57:08 PDT"]
[Termination "vrekhson won on time"]

1. d4 {[%clk 0:03:00.9]} 1... Nf6 {[%clk 0:02:59.2]} 2. c4 {[%clk 0:03:00.1]}
2... c5 {[%clk 0:02:58.9]} 3. d5 {[%clk 0:02:59.5]} 3... b5 {[%clk 0:02:58.9]}
4. cxb5 {[%clk 0:02:59.1]} 4... a6 {[%clk 0:02:59.1]} 5. bxa6 {[%clk 0:02:58.7]}
5... g6 {[%clk 0:02:58.5]} 6. Nc3 {[%clk 0:02:58.2]} 6... Bxa6 {[%clk
0:02:58.5]} 7. e4 {[%clk 0:02:58]} 7... Bxf1 {[%clk 0:02:59.4]} 8. Kxf1 {[%clk
0:02:57.8]} 8... d6 {[%clk 0:02:59.7]} 9. g3 {[%clk 0:02:57.7]} 9... Bg7 {[%clk
0:03:00]} 10. Kg2 {[%clk 0:02:57.8]} 10... O-O {[%clk 0:03:00.1]} 11. Nf3 {[%clk
0:02:57.7]} 11... Qa5 {[%clk 0:02:57.8]} 12. a4 {[%clk 0:02:54.9]} 12... Nbd7
{[%clk 0:02:57.1]} 13. Bd2 {[%clk 0:02:52.8]} 13... Qb4 {[%clk 0:02:56.6]} 14.
Qe2 {[%clk 0:02:44.3]} 14... Ng4 {[%clk 0:02:51.5]} 15. Rhb1 {[%clk 0:02:09.3]}
15... Rfb8 {[%clk 0:02:48.4]} 16. Nb5 {[%clk 0:01:56]} 16... Qb3 {[%clk
0:02:33.9]} 17. Ne1 {[%clk 0:01:49.6]} 17... Rxa4 {[%clk 0:02:21.8]} 18. Rxa4
{[%clk 0:01:34.5]} 18... Qxa4 {[%clk 0:02:22.7]} 19. Nc3 {[%clk 0:01:12.1]}
19... Bxc3 {[%clk 0:02:07.9]} 20. Bxc3 {[%clk 0:01:11.3]} 20... Ngf6 {[%clk
0:02:01.3]} 21. f3 {[%clk 0:01:04.8]} 21... h5 {[%clk 0:01:53.8]} 22. h4 {[%clk
0:01:02.3]} 22... Ne5 {[%clk 0:01:53.4]} 23. Nd3 {[%clk 0:00:37.8]} 23... Qc4
{[%clk 0:01:47.8]} 24. Nc1 {[%clk 0:00:28.3]} 24... Qxe2+ {[%clk 0:01:36.8]} 25.
Nxe2 {[%clk 0:00:27.6]} 25... Nc4 {[%clk 0:01:36.6]} 26. Kf2 {[%clk 0:00:25.5]}
26... Nd7 {[%clk 0:01:36.3]} 27. f4 {[%clk 0:00:24.3]} 27... f5 {[%clk
0:01:25.3]} 28. exf5 {[%clk 0:00:21.6]} 28... gxf5 {[%clk 0:01:25]} 29. Ng1
{[%clk 0:00:10.2]} 29... Kf7 {[%clk 0:01:15.8]} 30. Nf3 {[%clk 0:00:09.3]} 30...
Nf6 {[%clk 0:01:12.4]} 31. Ng5+ {[%clk 0:00:07.7]} 31... Kg6 {[%clk 0:01:12.5]}
32. Bxf6 {[%clk 0:00:03.1]} 32... Kxf6 {[%clk 0:01:13.4]} 33. b3 {[%clk
0:00:03]} 33... Nd2 {[%clk 0:01:06.8]} 34. Re1 {[%clk 0:00:01.5]} 34... Ne4+
{[%clk 0:00:56.5]} 0-1

[Event "*** SCC Grand Prix: Titled Tuesday Blitz"]
[Site "Chess.com"]
[Date "2020.08.11"]
[Round "10"]
[White "peixe64"]
[Black "WiktoriaPOL"]
[Result "1-0"]
[WhiteElo "2306"]
[BlackElo "1895"]
[TimeControl "180+1"]
[EndTime "11:57:16 PDT"]
[Termination "peixe64 won by resignation"]

1. d4 {[%clk 0:03:00.9]} 1... Nf6 {[%clk 0:02:59.4]} 2. c4 {[%clk 0:03:01.5]}
2... g6 {[%clk 0:02:59.3]} 3. Nc3 {[%clk 0:03:02.1]} 3... Bg7 {[%clk 0:02:59.3]}
4. e4 {[%clk 0:03:02]} 4... d6 {[%clk 0:02:59.5]} 5. h3 {[%clk 0:03:02.2]} 5...
O-O {[%clk 0:02:59.5]} 6. Bg5 {[%clk 0:03:02.6]} 6... c5 {[%clk 0:02:58.1]} 7.
d5 {[%clk 0:03:00.5]} 7... h6 {[%clk 0:02:54.6]} 8. Be3 {[%clk 0:02:59.9]} 8...
Nbd7 {[%clk 0:02:52.1]} 9. Nf3 {[%clk 0:02:54.3]} 9... Rb8 {[%clk 0:02:46.6]}
10. Bd3 {[%clk 0:02:52.8]} 10... a6 {[%clk 0:02:44]} 11. a4 {[%clk 0:02:51.8]}
11... Ne5 {[%clk 0:02:25]} 12. Nxe5 {[%clk 0:02:51.1]} 12... dxe5 {[%clk
0:02:25.5]} 13. Bxc5 {[%clk 0:02:42.4]} 13... Qc7 {[%clk 0:02:17.8]} 14. Be3
{[%clk 0:02:38.7]} 14... Ne8 {[%clk 0:02:10.4]} 15. O-O {[%clk 0:02:31.7]} 15...
Nd6 {[%clk 0:02:04.9]} 16. c5 {[%clk 0:02:28.1]} 16... Ne8 {[%clk 0:02:03.2]}
17. Rc1 {[%clk 0:02:21]} 17... f5 {[%clk 0:02:01.8]} 18. f3 {[%clk 0:02:20.7]}
18... Nf6 {[%clk 0:01:51.8]} 19. b4 {[%clk 0:02:16.7]} 19... f4 {[%clk
0:01:40.6]} 20. Bf2 {[%clk 0:02:15]} 20... g5 {[%clk 0:01:41]} 21. b5 {[%clk
0:02:06.2]} 21... h5 {[%clk 0:01:34.6]} 22. b6 {[%clk 0:02:04.5]} 22... Qd8
{[%clk 0:01:34.5]} 23. c6 {[%clk 0:01:58.3]} 23... Qe8 {[%clk 0:01:33.4]} 24.
Bc4 {[%clk 0:01:36.9]} 24... Kh8 {[%clk 0:01:26.7]} 25. c7 {[%clk 0:01:31.2]}
25... Ra8 {[%clk 0:01:25.9]} 26. d6 {[%clk 0:01:28]} 26... exd6 {[%clk
0:01:24.6]} 27. Qxd6 {[%clk 0:01:28.4]} 27... Qg6 {[%clk 0:01:24]} 28. Nd5
{[%clk 0:01:05.3]} 28... g4 {[%clk 0:01:15.9]} 29. Nxf6 {[%clk 0:01:02.3]} 29...
Bxf6 {[%clk 0:01:02.1]} 30. hxg4 {[%clk 0:00:55]} 30... hxg4 {[%clk 0:01:00.5]}
31. Qxf8+ {[%clk 0:00:54.7]} 31... Kh7 {[%clk 0:00:55.2]} 32. fxg4 {[%clk
0:00:32.3]} 32... Bxg4 {[%clk 0:00:34.7]} 33. Qxa8 {[%clk 0:00:29.7]} 33... Bh3
{[%clk 0:00:25.6]} 34. Qg8+ {[%clk 0:00:28.4]} 34... Qxg8 {[%clk 0:00:25.1]} 35.
Bxg8+ {[%clk 0:00:27.6]} 35... Kxg8 {[%clk 0:00:25]} 36. gxh3 {[%clk 0:00:28.3]}
1-0

[Event "*** SCC Grand Prix: Titled Tuesday Blitz"]
[Site "Chess.com"]
[Date "2020.08.11"]
[Round "10"]
[White "sergiochess83"]
[Black "GMBenjaminBok"]
[Result "1-0"]
[WhiteElo "2851"]
[BlackElo "2905"]
[TimeControl "180+1"]
[EndTime "11:57:17 PDT"]
[Termination "sergiochess83 won by resignation"]

1. e4 {[%clk 0:02:59.9]} 1... c5 {[%clk 0:02:58.1]} 2. Nf3 {[%clk 0:02:59]} 2...
d6 {[%clk 0:02:58.5]} 3. d4 {[%clk 0:02:59.2]} 3... cxd4 {[%clk 0:02:59.4]} 4.
Nxd4 {[%clk 0:02:59.8]} 4... Nf6 {[%clk 0:03:00]} 5. Nc3 {[%clk 0:03:00.1]} 5...
a6 {[%clk 0:03:00.5]} 6. Be3 {[%clk 0:03:00.5]} 6... e5 {[%clk 0:03:00.3]} 7.
Nb3 {[%clk 0:03:00]} 7... Be6 {[%clk 0:03:00.4]} 8. f3 {[%clk 0:02:58.1]} 8...
Be7 {[%clk 0:03:00.2]} 9. Qd2 {[%clk 0:02:54.5]} 9... O-O {[%clk 0:03:00]} 10.
O-O-O {[%clk 0:02:53.8]} 10... Nbd7 {[%clk 0:03:00.5]} 11. g4 {[%clk 0:02:52.7]}
11... b5 {[%clk 0:03:01.1]} 12. g5 {[%clk 0:02:50.1]} 12... Nh5 {[%clk
0:03:01.6]} 13. Kb1 {[%clk 0:02:28]} 13... Nb6 {[%clk 0:03:01.4]} 14. Na5 {[%clk
0:02:23]} 14... Rc8 {[%clk 0:03:00.7]} 15. Nd5 {[%clk 0:02:03.4]} 15... Nxd5
{[%clk 0:03:00.5]} 16. exd5 {[%clk 0:02:04.3]} 16... Bxd5 {[%clk 0:03:01]} 17.
Qxd5 {[%clk 0:02:04.1]} 17... Qxa5 {[%clk 0:03:01.6]} 18. Bd3 {[%clk 0:01:50.4]}
18... g6 {[%clk 0:02:59.9]} 19. c4 {[%clk 0:01:35.7]} 19... Nf4 {[%clk
0:02:50.2]} 20. Bxf4 {[%clk 0:01:34.2]} 20... exf4 {[%clk 0:02:51.1]} 21. h4
{[%clk 0:01:27.3]} 21... Rc5 {[%clk 0:02:27]} 22. Qe4 {[%clk 0:01:27.3]} 22...
Re5 {[%clk 0:01:59.9]} 23. Qxf4 {[%clk 0:01:26.8]} 23... Rc8 {[%clk 0:01:46.5]}
24. h5 {[%clk 0:00:53.9]} 24... Bxg5 {[%clk 0:01:11.3]} 25. Qg4 {[%clk
0:00:54.1]} 25... Rb8 {[%clk 0:00:24.5]} 26. hxg6 {[%clk 0:00:51]} 26... hxg6
{[%clk 0:00:22.8]} 27. f4 {[%clk 0:00:39.3]} 27... bxc4 {[%clk 0:00:20.1]} 28.
Bxc4 {[%clk 0:00:38.5]} 28... Rxb2+ {[%clk 0:00:04.6]} 29. Kxb2 {[%clk
0:00:37.4]} 29... Qb4+ {[%clk 0:00:03.4]} 30. Bb3 {[%clk 0:00:37.1]} 30... Bf6
{[%clk 0:00:02.1]} 31. Qxg6+ {[%clk 0:00:34.1]} 1-0

[Event "*** SCC Grand Prix: Titled Tuesday Blitz"]
[Site "Chess.com"]
[Date "2020.08.11"]
[Round "10"]
[White "Fischerev7"]
[Black "icychess54"]
[Result "1-0"]
[WhiteElo "2402"]
[BlackElo "2240"]
[TimeControl "180+1"]
[EndTime "11:57:18 PDT"]
[Termination "Fischerev7 won on time"]

1. e4 {[%clk 0:03:00.9]} 1... c5 {[%clk 0:02:58.9]} 2. Nf3 {[%clk 0:03:00.7]}
2... d6 {[%clk 0:02:58.2]} 3. d4 {[%clk 0:03:00.4]} 3... cxd4 {[%clk 0:02:58.6]}
4. Nxd4 {[%clk 0:03:00]} 4... Nf6 {[%clk 0:02:59.1]} 5. Nc3 {[%clk 0:02:59.4]}
5... Nc6 {[%clk 0:02:59]} 6. Bg5 {[%clk 0:02:58]} 6... e6 {[%clk 0:02:54.8]} 7.
Qd2 {[%clk 0:02:56.9]} 7... h6 {[%clk 0:02:54.9]} 8. Bxf6 {[%clk 0:02:52.4]}
8... gxf6 {[%clk 0:02:53.5]} 9. O-O-O {[%clk 0:02:49.7]} 9... a6 {[%clk
0:02:42.2]} 10. Kb1 {[%clk 0:02:48.2]} 10... h5 {[%clk 0:02:41.8]} 11. f4 {[%clk
0:02:46.5]} 11... Qc7 {[%clk 0:02:41.7]} 12. f5 {[%clk 0:02:43]} 12... Bd7
{[%clk 0:02:41.4]} 13. Bc4 {[%clk 0:02:39.5]} 13... Nxd4 {[%clk 0:02:05.6]} 14.
Qxd4 {[%clk 0:02:40.4]} 14... Be7 {[%clk 0:02:02.9]} 15. Bb3 {[%clk 0:02:36.3]}
15... O-O-O {[%clk 0:02:01.2]} 16. Rhf1 {[%clk 0:02:33.9]} 16... Kb8 {[%clk
0:01:59.1]} 17. Rf3 {[%clk 0:02:33]} 17... h4 {[%clk 0:01:45.6]} 18. Qf2 {[%clk
0:02:15.4]} 18... Qa5 {[%clk 0:01:22.9]} 19. Ne2 {[%clk 0:02:05.8]} 19... Qe5
{[%clk 0:01:18]} 20. Rf4 {[%clk 0:01:54.6]} 20... Rc8 {[%clk 0:01:01.5]} 21. Nd4
{[%clk 0:01:48]} 21... Qc5 {[%clk 0:00:34.5]} 22. fxe6 {[%clk 0:01:40.8]} 22...
fxe6 {[%clk 0:00:33.1]} 23. Nxe6 {[%clk 0:01:37.7]} 23... Qxf2 {[%clk
0:00:26.7]} 24. Rxf2 {[%clk 0:01:38.6]} 24... Bxe6 {[%clk 0:00:26.5]} 25. Bxe6
{[%clk 0:01:35.1]} 25... Rc5 {[%clk 0:00:26.7]} 26. Bd5 {[%clk 0:01:31.6]} 26...
Rh5 {[%clk 0:00:22.5]} 27. c3 {[%clk 0:01:28.8]} 27... Rc8 {[%clk 0:00:20.6]}
28. Kc2 {[%clk 0:01:25.3]} 28... Rg5 {[%clk 0:00:18]} 29. Rdd2 {[%clk
0:01:25.1]} 29... Rh8 {[%clk 0:00:15.5]} 30. Rf5 {[%clk 0:01:21.4]} 30... Rxf5
{[%clk 0:00:12.2]} 31. exf5 {[%clk 0:01:22.3]} 31... Rh5 {[%clk 0:00:12.9]} 32.
Be6 {[%clk 0:01:18.6]} 32... Rg5 {[%clk 0:00:12.7]} 33. Kd3 {[%clk 0:01:16.9]}
33... Bd8 {[%clk 0:00:12.3]} 34. Ke4 {[%clk 0:01:13.9]} 34... Bb6 {[%clk
0:00:09.7]} 35. Kf3 {[%clk 0:01:13.6]} 35... Kc7 {[%clk 0:00:09.1]} 36. g4
{[%clk 0:01:10.3]} 36... hxg3 {[%clk 0:00:08.4]} 37. hxg3 {[%clk 0:01:11.2]}
37... a5 {[%clk 0:00:08.3]} 38. Rh2 {[%clk 0:01:09.7]} 38... Rg7 {[%clk
0:00:05.8]} 39. Rh6 {[%clk 0:01:08.4]} 39... Kd8 {[%clk 0:00:01.3]} 40. Rxf6
{[%clk 0:01:07.8]} 40... Ke7 {[%clk 0:00:02.2]} 41. Rh6 {[%clk 0:01:06.9]} 41...
d5 {[%clk 0:00:02.6]} 42. f6+ {[%clk 0:01:06.8]} 42... Kxe6 {[%clk 0:00:02.5]}
43. fxg7+ {[%clk 0:01:07.3]} 43... Kf7 {[%clk 0:00:02.2]} 44. Rxb6 {[%clk
0:01:07.5]} 1-0